Cogmind - Beta 10.2 @@@ ROGUE MODE // 2021.10.13 @ 18:03:44 Player: Entity447B Result: Destroyed by G-34 Mercenary with Small Laser Performance ------------- Evolutions (0) 0 Regions Visited (1) 200 Robots Destroyed (13) 65 Value Destroyed (290) 290 Prototype IDs (0) 0 Alien Tech Used (0) 0 Bonus (0) 0 TOTAL SCORE: 555 Bonus ------- None Cogmind --------- Core Integrity 0/250 Matter 281/300 Energy 500/500 System Corruption 0% Temperature Cool (6) Movement Core (150) Ox2 Location -10/Materials Parts ------- > --- POWER (1) -------- (None) > --- PROPULSION (2) --- (None) > --- UTILITY (2) ------ Small Storage Unit High-capacity Battery > --- WEAPON (2) ------- (None) > --- INVENTORY (6) ---- Light Ion Engine Light Ion Engine Targeting Computer Peak State ------------ > --- POWER ------------ Light Ion Engine > --- PROPULSION ------- Light Treads Light Treads > --- UTILITY ---------- Small Storage Unit High-capacity Battery > --- WEAPON ----------- EM Pulse Gun Assault Rifle > --- INVENTORY -------- Light Ion Engine [Rating: 7] Favorites ----------- Power Ion Engine Engine Ion Engine Propulsion Light Treads Treads Light Treads Utility Small Storage Unit Storage Small Storage Unit Weapon Grenade Launcher Energy Gun EM Pulse Gun Ballistic Gun Assault Rifle Launcher Grenade Launcher Build | -11 -10 ------- Run | Scr Mat Slots Evolved . | . . Power . | . . Propulsion . | . . Utility . | . . Weapon . | . . Parts Attached 12 | 6 6 Power 2 | 1 1 Engine 2 | 1 1 Core . | . . Reactor . | . . Propulsion 3 | 2 1 Treads 3 | 2 1 Leg . | . . Wheel . | . . Hover . | . . Flight . | . . Utility 2 | 1 1 Device . | . . Storage 2 | 1 1 Processor . | . . Hackware . | . . Protection . | . . Artifact . | . . Weapon 5 | 2 3 Energy Gun 2 | 1 1 Energy Cannon . | . . Ballistic Gun 1 | 1 . Ballistic Cannon . | . . Launcher 2 | . 2 Special Weapon . | . . Impact Weapon . | . . Slashing Weapon . | . . Piercing Weapon . | . . Special Melee Weapon . | . . Unidentified Prototypes . | . . Parts Lost 7 | . 7 Power 2 | . 2 Propulsion 1 | . 1 Utility . | . . Weapon 4 | . 4 Highest Loss Streak 4 | . 4 Average Slot Usage (%) 84 | . 84 Engine 11 | . 11 Treads 23 | . 23 Storage 26 | . 26 Energy Gun 6 | . 6 Ballistic Gun 5 | . 5 Launcher 8 | . 8 Naked Turns . | . . Heaviest Build 18 | 11 18 Greatest Support 40 | 3 40 Greatest Overweight (x) 5 | 3 5 Average Overweight (x) 1 | 1 1 Largest Inventory Capacity 6 | 6 6 Average Capacity 5 | 5 6 Most Carried 4 | 4 4 Average Carried 2 | 1 2 Final Capacity 6 | 6 6 Final Carried 3 | 1 3 Class Distribution -------------------- 100% | Mutant Dominant Class ---------------- Mutant | -10/Materials Resources | -11 -10 ----------- Run | Scr Mat Matter Collected 413 | 217 196 Remotely . | . . Salvage Created 246 | . 246 Parts 31 | . 31 Haulers Intercepted . | . . Recyclers Shooed 1 | . 1 Parts Field Recycled . | . . Retrieved Matter . | . . Parts Self-Destructed . | . . Prevented . | . . Kills | -11 -10 ------- Run | Scr Mat Combat Hostiles Destroyed 9 | . 9 Guns 3 | . 3 AOE 6 | . 6 Classes Destroyed 5 | . 5 Worker 2 | . 2 Builder 1 | . 1 Watcher 1 | . 1 Swarmer 3 | . 3 Grunt 6 | . 6 Best Kill Streak 4 | . 4 Combat Bots Only 3 | . 3 Max Kills in Single Turn 3 | . 3 Gunslinging 1 | . 1 Exploded 2 | . 2 Melee . | . . Uniques/NPCs Destroyed . | . . Combat | -11 -10 -------- Run | Scr Mat Damage Taken 966 | . 966 Core 259 | . 259 Absorbed by Shields . | . . Core Remaining (%) 100 | 100 . Volleys Fired 27 | . 27 Largest 2 | . 2 Hottest 60 | . 60 Shots Fired 43 | . 43 Gun 33 | . 33 Cannon . | . . Launcher 10 | . 10 Special . | . . Kinetic 21 | . 21 Thermal 1 | . 1 Explosive 10 | . 10 Electromagnetic 11 | . 11 Robot Hit Streak 5 | . 5 Robot Miss Streak 5 | . 5 Penetration Max . | . . Secondary Targets 1 | . 1 Max Gunslinging Chain 1 | . 1 Shots Hit Robots 23 | . 23 Core Hits 16 | . 16 Critical Hits . | . . Critical Kills . | . . Critical Parts Destroyed . | . . Melee Attacks . | . . Impact . | . . Slashing . | . . Piercing . | . . Sneak Attacks . | . . Combat Hostiles . | . . Follow-up Attacks . | . . Damage Inflicted 893 | . 893 Guns 187 | . 187 Cannons . | . . Explosions 696 | . 696 Melee . | . . Ramming 10 | . 10 Kinetic 118 | . 118 Thermal . | . . Explosive 696 | . 696 Electromagnetic 69 | . 69 Impact . | . . Slashing . | . . Piercing . | . . Highest Corruption . | . . Average Corruption . | . . Corruption Purged . | . . Overload Shots . | . . Overflow Damage 14 | . 14 Projectiles . | . . Explosions 14 | . 14 Melee . | . . Knockbacks . | . . Impact . | . . Kinetic . | . . Secondary . | . . Self-Inflicted Damage 41 | . 41 Shots 3 | . 3 Rammed 6 | . 6 Targets Rammed 6 | . 6 Kicked . | . . Crushed . | . . Highest Temperature 44 | . 44 Average Temperature 15 | . 15 Received Heat Transfer 486 | . 486 Siege Activations . | . . Robots Corrupted . | . . Combat Hostiles . | . . Parts Fried . | . . Impact Corruptions . | . . Robots Melted . | . . Combat Hostiles . | . . Parts Melted . | . . Heat Transferred . | . . Parts Sabotaged . | . . Parts Stolen . | . . Parts Stripped . | . . Power Chain Reactions . | . . Missiles Intercepted . | . . Alert | -11 -10 ------- Run | Scr Mat Peak Influence 227 | . 227 Initial . | . . Average 85 | . 96 Maximum Alert Level 1 | . 1 Low Security (%) 79 | 100 77 Level 1 20 | . 22 Level 2 . | . . Level 3 . | . . Level 4 . | . . Level 5 . | . . High Security . | . . Max Security . | . . Squads Dispatched 3 | . 3 Investigation 1 | . 1 Extermination . | . . Reinforcement 2 | . 2 Assault . | . . Garrison . | . . Intercept . | . . Construction Impeded . | . . Haulers Reinforced . | . . Stealth | -11 -10 --------- Run | Scr Mat Distress Signals . | . . Communications Jammed . | . . Distress Signals . | . . Times Spotted 19 | . 19 Peak Tracking Total 6 | . 6 Tactical Retreats . | . . Traps | -11 -10 ------- Run | Scr Mat Traps Triggered . | . . Indirectly . | . . Trap Hack Attempts . | . . Triggered . | . . Disarmed . | . . Reprogrammed . | . . Reused . | . . Traps Extracted . | . . Installed . | . . Triggered . | . . Machines | -11 -10 ---------- Run | Scr Mat Machines Disabled 2 | . 2 Max in Single Turn 1 | . 1 Machines Sabotaged . | . . Garrisons Compromised . | . . Overloaded Fab Kills . | . . Fab Network Shutdowns . | . . Hacking | -11 -10 --------- Run | Scr Mat Machines Accessed 2 | . 2 Terminals 1 | . 1 Fabricators . | . . Repair Stations 1 | . 1 Recycling Units . | . . Scanalyzers . | . . Garrison Access . | . . Total Hacks 9 | . 9 Successful 7 | . 7 Failed 2 | . 2 Catastrophic . | . . Database Lockouts . | . . Manual . | . . Terminals 2 | . 2 Fabricators . | . . Repair Stations 7 | . 7 Recycling Units . | . . Scanalyzers . | . . Garrison Access . | . . Terminal Hacks 1 | . 1 Alert Level 1 | . 1 Fabricator Hacks . | . . Repair Station Hacks 6 | . 6 Scan Component 3 | . 3 Repair 3 | . 3 Recycling Unit Hacks . | . . Scanalyzer . | . . Garrison Access Hacks . | . . Unauthorized Hacks . | . . Terminals . | . . Fabricators . | . . Repair Stations . | . . Recycling Units . | . . Scanalyzers . | . . Garrison Access . | . . Data Cores Recovered . | . . Used . | . . Hacking Detections 1 | . 1 Full Trace Events 1 | . 1 Feedback Events . | . . Feedback Blocked . | . . Robot Schematics Acquired . | . . Robots Built . | . . Matter . | . . Time . | . . Total Robot Build Rating . | . . Part Schematics Acquired . | . . Parts Built . | . . Matter . | . . Time . | . . Total Part Build Rating . | . . Parts Repaired 3 | . 3 Time 78 | . 78 Parts Recycled . | . . Recycled Matter . | . . Retrieved Matter . | . . Retrieved Components . | . . Parts Scanalyzed . | . . Part Schematics Acquired . | . . Parts Damaged . | . . Bothacking | -11 -10 ------------ Run | Scr Mat Used RIF Installer . | . . Robots Hacked . | . . Non-combat . | . . Combat . | . . Robot Hacks Applied . | . . Relay Couplers Released . | . . Robots Rewired . | . . Allies Hacked . | . . Hacks Repelled . | . . Allies | -11 -10 -------- Run | Scr Mat Total Allies . | . . Largest Group . | . . Highest-Rated Group . | . . Highest-Rated Ally . | . . Total Orders . | . . Ally Attacks . | . . Total Damage . | . . Kills . | . . Allies Corrupted . | . . Allies Melted . | . . Intel | -11 -10 ------- Run | Scr Mat Robot Analysis Total . | . . Derelict Logs Recovered . | . . Drone Launches . | . . Drone Recoveries . | . . Exploration | -11 -10 ------------- Run | Scr Mat Turns Passed 688 | 79 609 Spaces Moved 336 | 54 282 Core 155 | 54 101 Treads 181 | . 181 Legs . | . . Wheels . | . . Hover . | . . Flight . | . . Fastest Speed 50 | 50 150 Average Speed 172 | 125 181 Slowest Speed 300 | 200 300 Overloaded Moves . | . . Propulsion Burnouts . | . . Robots Hopped . | . . Cave-ins Triggered . | . . Exploration Rate (%) 16 | 3 30 Regions Visited 1 Branch Regions . Pre-discovered Areas . | . . Known Exits Taken . | . . Unknown Exits Taken 1 | 1 . Scrap Searched . | . . Spaces Dug . | . . Terrain Destroyed 44 | . 44 Melee . | . . Projectile . | . . AOE 44 | . 44 Terrain Rammed . | . . Walls Destroyed . | . . Machines Disabled . | . . Actions | -11 -10 --------- Run | Scr Mat Total 396 | 66 330 Wait 1 | . 1 Move 335 | 53 282 Hop . | . . Pick Up 15 | 7 8 Fast Attach . | . . Attach 12 | 6 6 Detach . | . . Swap . | . . Drop . | . . Fire 27 | . 27 Melee . | . . Ram 1 | . 1 Kick . | . . Crush 5 | . 5 Escape Stasis . | . . Rewire . | . . Trap . | . . Miscellaneous . | . . Route ------- -11/Scrapyard -10/Materials History --------- Turn | Location | Event 4 | -11/Scrapyard | Discovered new exit (range 15) 80 | -11/Scrapyard | Entered Materials 316 | -10/Materials | Build established: Mutant 334 | -10/Materials | Core integrity fell below 50% 554 | -10/Materials | Repaired Grenade Launcher 554 | -10/Materials | Repaired Lgt. Treads 580 | -10/Materials | Repaired Lgt. Treads? 659 | -10/Materials | Core integrity fell below 20% 689 | -10/Materials | Destroyed by G-34 Mercenary with Small Laser Last Messages --------------- >>Repair Cancelling repair: Lgt. Treads. Repairing Lgt. Treads... ETC: 26 00554_ ALERT: Suspicious activity at Repair Station M001. Dispatching Investigation squad. 00554_ Repair Station unresponsive. 00559_ Acquired Lgt. Treads. 00580_ >> REPAIR: Completed Lgt. Treads? 00632_ Acquired Grenade Launcher. 00636_ Slammed into G-34 Mercenary. 00643_ Lgt. Treads destroyed. 00644_ Slammed into G-34 Mercenary. 00644_ Ion Engine permanently disabled. 00644_ Destabilizing: Short circuit. 00646_ Med. Laser destroyed. 00660_ Broken Ion Engine destroyed. 00662_ G-34 Mercenary destroyed. 00662_ Grenade Launcher destroyed. 00662_ Destroyed Grenade Launcher. Map ----- +----------------------------------------------------+ | | | ?????????????????????????????????????????????????? | | ?????????????????????????????????????????????????? | | ?????????????????????????????????????????????????? | | ?????????????????????????????????????????????????? | | ?????????????????????????????????????????????????? | | ??????????############???????????????????????????? | | ???######## # #???????????????????????????? | | ???# """ # #???????????????????????????? | | ???# """ # [ """ #???????????????????????????? | | ???# """ % "R= #???????????????????????????? | | ???# * """ #???????????????????????????? | | ???# #???????????????????????????? | | ???# # #######???????????????????????????? | | ???######## ##?????????????????????????????????? | | ??????????# #???????????????????????#???? ??? | | ??????????# #??????????????????????? ???? ???? | | ??????????# ###############????????? ???? #???? | | ??????????# #????????? ??? #???? | | ??????????# gg o ###??????? ??? #???? | | ??????????# ""#??????? ??? #???? | | ??????????##########g [ T"#??????? ### ##??? | | ???????????????????# [ ""#???####+ # #??? | | ???????????????????# ]% ####### #??? | | ???????????????????# #! = #??? | | ???????????????????# @ # #??? | | ???????????#######?# #""" #??? | | ?????###???# # #""" [ # #????? | | ????? ?????""""" # #""" #????? | | ###??# #?????""""" + # #????? | | ?# #?????""""" # = ! ######## #????? | | ## ##??# # = ## ==# | | * ############ ] * ==# | | =! ! * !!# | | = ############# !!# | | ## ????????### % !* ##### | | ?#|! ????????####### ############### #???? | | ??#!! ??????""""" # # = T #? #???? | | ???#!! ??""""""" # + "" #??#???? | | #????######+####?""""""" + # """ #??????? | | ?????????????????""""""" # # """ #??????? | | ????????????????????"""" # #] #??????? | | ?????????????????????? # ###########/##??????? | | ?????????????????????? + #?????????? #???????? | | ?????????????????????? ###+#???????????#???????? | | ???????????????????????###?? ???????????????????? | | ?????????????????????????????????????????????????? | | ?????????????????????????????????????????????????? | | ?????????????????????????????????????????????????? | | ?????????????????????????????????????????????????? | +----------------------------------------------------+ Best States ------------- Heat Dissipation 25 Energy Generation 10 Energy Capacity 650 Matter Stores 300 Matter Capacity 300 Sight Range 16 Terrain Scan Density 10 Evasion (%) 50 Recoil Reduction 2 Item Schematics ----------------- None Robot Schematics ------------------ None Fabricated ------------ Nothing Alien Tech Used ----------------- None Achievements -------------- Part-time Mechanic Storm Trooper Uninvited Guest Challenges ------------ None Game ------ Seed SurveybotHeartFlakker Manual? 0 Play Time 00:10:54 Cumulative 4.4 hours Start 2021.10.13 @ 17:54:10 End 2021.10.13 @ 18:03:44 Sessions 1 Manual Loads 0 Difficulty Rogue Special Mode None Game No. 16 Rogue 16 Adventurer 0 Explorer 0 Win Type - Total 0 Types 0/0/0/0/0/0/0/0/0 Lore% 6 Gallery% 9 Achievement% 4 Wizard Run 0 Options --------- ASCII 0 Keyboard 0 Movement Numpad Keybinds 0 Fullscreen 1 Font 16/SmallcapsGlow Map View 76x50 Tactical HUD 1 Map Filters NONE Filters NONE Steam 1 RUN: f7548b36-e592-449f-bacd-25899ae542b5